bitfinex/quotes_SOLUSD_20240624
["timestamp","ask_amount","ask_price","bid_price","bid_amount"]
[1719259490620,7.8126,128.0,127.92,20.0]
[1719259491297,0.17,128.01,127.9,259.1]
[1719259491497,0.34,128.04,127.88,19.5491]
[1719259491829,6.329,128.08,127.92,39.0842]
[1719259491995,6.329,128.08,127.94,19.5394]
[1719259492198,6.329,128.08,127.99,7.813]
[1719259492432,6.329,128.08,128.0,7.8124]
[1719259492723,6.329,128.08,128.01,19.5292]
[1719259493025,16.5681,128.1,128.01,50.2692]
[1719259493231,6.2044,128.12,128.03,19.5259]
[1719259493409,6.2044,128.12,128.05,7.8093]
[1719259493611,6.2044,128.12,128.06,7.8087]
[1719259493801,6.2044,128.12,128.04,0.17]
[1719259494003,14.0096,128.12,128.03,7.9801]
[1719259494323,6.2044,128.12,128.05,7.8094]
[1719259494622,6.2044,128.12,128.06,7.9786]
[1719259494822,15.0935,128.15,128.07,0.17]
[1719259495120,15.0935,128.15,128.06,0.17]
[1719259495121,15.0935,128.15,128.09,7.8069]
[1719259495510,15.0935,128.15,128.05,50.263]
[1719259495735,6.0797,128.16,128.09,7.8065]
[1719259495919,6.0797,128.16,128.1,7.8062]
[1719259496239,21.5983,128.2,128.11,7.9753]
[1719259496539,7.801,128.19,128.11,0.17]
[1719259496909,21.5983,128.2,128.11,19.6835]
[1719259497240,29.3989,128.2,128.12,0.17]
[1719259497523,21.5983,128.2,128.12,0.17]
[1719259497702,29.3987,128.2,128.12,0.17]
[1719259498103,21.5983,128.2,128.09,30.74]
[1719259498400,21.5983,128.2,128.1,20.34]
[1719259498605,7.801,128.19,128.1,20.34]
[1719259498823,0.17,128.18,128.05,7.8093]
[1719259499028,7.8041,128.14,128.06,20.0]
[1719259499211,7.804,128.14,128.06,20.0]
[1719259499412,7.803,128.16,128.06,27.8085]
[1719259499608,7.9722,128.17,128.07,7.8082]
[1719259500016,0.17,128.17,128.09,7.8067]
[1719259500219,21.5983,128.2,128.06,27.8082]
[1719259500422,19.503,128.19,128.07,0.34]
[1719259500636,7.8037,128.15,128.08,0.17]
[1719259500938,21.5983,128.2,128.06,0.34]
[1719259500939,7.8022,128.17,128.06,19.8611]
[1719259501231,7.8045,128.14,128.06,0.17]
[1719259501443,19.5033,128.19,128.05,19.6925]
[1719259501745,7.8009,128.19,128.1,7.8058]
[1719259502038,21.5983,128.2,128.09,19.5167]
[1719259502218,21.5983,128.2,128.1,20.0]
[1719259502527,7.8015,128.18,128.1,20.0]
[1719259502742,21.5983,128.2,128.1,20.0]
[1719259503113,21.5983,128.2,128.08,30.74]
[1719259503310,21.5983,128.2,128.09,20.17]
[1719259503505,21.5983,128.2,128.12,7.8051]
[1719259503742,29.3988,128.2,128.11,7.8057]
[1719259504149,6.5022,128.2,128.12,27.4875]
[1719259504321,6.5022,128.2,128.13,7.8043]
[1719259504523,7.7987,128.23,128.13,20.17]
[1719259504840,6.286,128.24,128.14,19.6792]
[1719259505023,6.286,128.24,128.16,19.5057]
[1719259505341,6.286,128.24,128.15,20.17]
[1719259505342,6.286,128.24,128.18,27.3041]
[1719259505513,6.286,128.24,128.19,0.17]
[1719259505857,6.286,128.24,128.17,20.34]
[1719259506008,22.0184,128.3,128.17,0.17]
[1719259506212,22.0184,128.3,128.16,20.0]
[1719259506213,7.7979,128.24,128.16,20.0]
[1719259506414,22.0184,128.3,128.17,8.1415]
[1719259506621,7.7961,128.27,128.18,7.8015]
[1719259506839,7.7961,128.27,128.19,0.17]
[1719259507144,22.0184,128.3,128.19,0.34]
[1719259507443,22.0184,128.3,128.21,7.7991]
[1719259507614,7.7973,128.25,128.16,55.9841]
[1719259507814,41.5045,128.3,128.17,0.17]
[1719259508039,7.7971,128.26,128.17,0.17]
[1719259508218,22.0184,128.3,128.13,19.5103]
[1719259508419,7.8003,128.21,128.12,6.232]
[1719259508642,22.0184,128.3,128.14,30.74]
[1719259508842,22.0184,128.3,128.16,19.5053]
[1719259509023,60.9919,128.3,128.14,30.74]
[1719259509343,7.8017,128.18,128.1,30.74]
[1719259509529,15.3937,128.21,128.09,7.8064]
[1719259509846,0.17,128.2,128.05,15.8921]
[1719259510014,7.8052,128.12,128.04,390.4]
[1719259510219,19.5062,128.17,128.01,19.529]
[1719259510448,7.8057,128.11,128.01,19.529]
[1719259510748,6.2077,128.19,128.01,19.529]
[1719259510749,38.36768055,128.52,128.31,46.7617]
[1719259510925,7.17568944,128.4,128.35,7.7909]
[1719259511114,0.87684761,128.4,128.35,19.4768]
[1719259511313,0.87684761,128.4,128.31,111.9097476]
[1719259511314,0.87684761,128.4,128.39,7.7887]
[1719259511836,0.87684761,128.4,128.38,19.4724]
[1719259512133,0.87684761,128.4,128.35,7.7909]
[1719259512336,0.87684761,128.4,128.3,19.4847]
[1719259512545,0.87684761,128.4,128.28,30.74]
[1719259512844,0.87684761,128.4,128.26,7.796]
[1719259513053,0.87684761,128.4,128.25,19.4919]
[1719259513054,0.87684761,128.4,128.22,30.74]
[1719259513224,10.0,128.38,128.22,30.74]
[1719259513430,10.0,128.38,128.25,7.7971]
[1719259513623,7.7925,128.33,128.2,0.72535032]
[1719259513938,7.7927,128.33,128.22,19.4963]
[1719259514144,7.791,128.36,128.23,7.7982]
[1719259514452,7.7901,128.37,128.25,19.4927]
[1719259514619,7.7901,128.37,128.26,20.0]
[1719259514620,0.17,128.36,128.26,20.0]
[1719259515022,7.7912,128.35,128.25,19.4927]
[1719259515239,0.17,128.36,128.26,45.34]
[1719259515461,0.87684761,128.4,128.27,27.7957]
[1719259515462,7.79,128.37,128.27,27.7957]
[1719259515645,7.79,128.37,128.28,45.34]
[1719259516029,7.7893,128.39,128.28,53.1353]
[1719259516346,0.87684761,128.4,128.28,45.34]
[1719259516347,7.7907,128.36,128.28,45.34]
[1719259516533,0.87684761,128.4,128.28,45.34]
[1719259516847,0.87684761,128.4,128.29,20.0]
[1719259517031,7.7901,128.37,128.3,45.0]
[1719259517228,0.87684761,128.4,128.31,16.3837]
[1719259517570,7.7819,128.51,128.39,7.7882]
[1719259517718,6.0858,128.59,128.39,7.7882]
[1719259517719,6.0858,128.59,128.43,7.7861]
[1719259518046,6.0858,128.59,128.44,0.17]
[1719259518047,8.6572476,128.53,128.44,0.17]
[1719259518343,8.6572476,128.53,128.44,65.34]
[1719259518344,0.8768476,128.53,128.44,65.34]
[1719259518548,0.8768476,128.53,128.44,55.0]
[1719259518746,0.8768476,128.53,128.45,28.1245]
[1719259518956,0.8768476,128.53,128.46,45.0]
[1719259519118,0.8768476,128.53,128.41,0.72416409]
[1719259519119,7.7815,128.51,128.41,0.72416409]
[1719259519323,0.8768476,128.53,128.4,19.6402]
[1719259519530,7.7819,128.51,128.41,20.0]
[1719259519719,0.8768476,128.53,128.39,31.148389]
[1719259519926,7.7827,128.49,128.4,20.0]
[1719259520231,0.8768476,128.53,128.4,20.0]
[1719259520620,0.8768476,128.53,128.41,0.17]
[1719259520819,7.7833,128.48,128.38,27.9593]
[1719259521054,0.8768476,128.53,128.38,51.320362]
[1719259521239,7.7845,128.46,128.39,45.17]
[1719259521548,0.8768476,128.53,128.39,45.17]
[1719259521549,7.784,128.47,128.39,45.17]
[1719259521741,7.7843,128.47,128.39,45.17]
[1719259522121,0.8768476,128.53,128.39,45.17]
[1719259522321,7.7839,128.47,128.39,45.17]
[1719259522723,7.7834,128.48,128.39,45.17]
[1719259522930,0.34,128.52,128.38,37.9592]
[1719259522931,10.34,128.52,128.38,10.0]
[1719259523243,0.17,128.47,128.32,38.5329]
[1719259523443,7.787,128.42,128.33,20.0]
[1719259523654,0.17,128.47,128.33,20.0]
[1719259523819,7.7874,128.42,128.33,20.0]
[1719259524142,7.7874,128.42,128.33,20.72461553]
[1719259524649,7.7869,128.42,128.34,19.4597]
[1719259524847,19.4625,128.46,128.34,19.4597]
[1719259525025,0.34,128.45,128.34,19.4597]
[1719259525341,0.34,128.45,128.33,0.72461553]
[1719259525342,7.7901,128.37,128.33,0.72461553]
[1719259525559,19.4685,128.42,128.33,0.72461553]
[1719259525726,19.4685,128.42,128.31,19.4625]
[1719259525930,7.7912,128.35,128.31,19.4625]
[1719259526123,7.792,128.34,128.31,19.4625]
[1719259526346,19.4743,128.38,128.31,19.4625]
[1719259526538,0.34,128.37,128.29,0.72484146]
[1719259526844,7.7919,128.34,128.25,19.4743]
[1719259527230,0.34,128.37,128.25,19.4743]
[1719259527231,7.7929,128.33,128.25,19.4743]
[1719259527434,6.1816,128.39,128.23,391.12518062]
[1719259527648,0.17,128.38,128.28,7.7949]
[1719259527832,7.7906,128.36,128.27,19.4896]
[1719259528149,0.17,128.38,128.26,38.5362]
[1719259528150,0.17,128.38,128.26,30.74]
[1719259528353,0.34,128.38,128.26,30.74]
[1719259528569,19.4758,128.37,128.27,0.17]
[1719259528742,7.7923,128.34,128.27,0.17]
[1719259529068,0.34,128.36,128.22,38.5329]
[1719259529069,19.4787,128.35,128.22,38.5329]
[1719259529251,7.7935,128.32,128.22,46.3317]
[1719259529778,10.0,128.41,128.23,19.4949]
[1719259529938,0.17,128.38,128.25,19.4924]
[1719259530139,0.17,128.38,128.22,38.5329]
[1719259530378,19.6448,128.38,128.24,7.7978]
[1719259530677,19.6448,128.38,128.22,58.0298]
[1719259530678,19.4772,128.36,128.22,38.5329]
[1719259530962,7.795,128.29,128.23,0.17]
[1719259531173,19.4801,128.34,128.23,0.17]
[1719259531174,7.7937,128.31,128.23,0.17]
[1719259531467,7.793,128.32,128.23,0.17]
[1719259531851,7.9625,128.33,128.23,20.17]
[1719259532054,0.17,128.35,128.23,27.9684]
[1719259532361,0.17,128.36,128.23,20.17]
[1719259532680,0.17,128.36,128.26,7.7961]
[1719259532681,8.1311,128.36,128.26,7.7961]
[1719259532851,21.5729,128.39,128.25,19.4919]
[1719259533047,19.4741,128.38,128.26,20.17]
[1719259533361,21.5729,128.39,128.26,20.17]
[1719259533566,19.4755,128.37,128.26,20.17]
[1719259533757,21.5729,128.39,128.26,7.9661]
[1719259533758,7.7907,128.36,128.26,7.9661]
[1719259534068,7.7919,128.34,128.26,0.17]
[1719259534273,21.5729,128.39,128.26,0.34]
[1719259534449,6.1816,128.39,128.27,19.4895]
[1719259534654,19.4687,128.42,128.28,51.08]
[1719259534946,15.5807,128.45,128.28,51.08]
[1719259535162,7.7883,128.4,128.31,19.4831]
[1719259535357,7.7883,128.4,128.32,0.34]
[1719259535545,19.4683,128.42,128.32,0.17]
[1719259535747,7.7894,128.38,128.32,0.17]
[1719259535947,7.7889,128.39,128.32,0.17]
[1719259536152,7.7889,128.39,128.31,0.34]
[1719259536542,7.7883,128.4,128.31,0.34]
[1719259536748,19.4683,128.42,128.31,0.34]
[1719259537473,19.4713,128.4,128.28,30.74]
[1719259537648,19.4713,128.4,128.29,20.34]
[1719259537856,7.7901,128.37,128.29,20.34]
[1719259538062,19.4668,128.43,128.29,39.826]
[1719259538248,72.92814502,128.46,128.29,26.8432]
[1719259538464,53.46614502,128.46,128.29,26.8432]
[1719259538769,7.7888,128.39,128.29,34.6375]
[1719259539170,7.7888,128.39,128.3,7.7941]
[1719259539366,7.7882,128.4,128.31,20.34]
[1719259539683,19.4652,128.44,128.32,7.7929]
[1719259539967,14.54294502,128.46,128.34,7.7916]
[1719259540174,14.54294502,128.46,128.35,20.34]
[1719259540485,38.9259,128.45,128.33,0.17]
[1719259540773,19.4631,128.45,128.33,0.34]
[1719259541149,7.7888,128.39,128.33,0.34]
[1719259541349,0.17,128.44,128.33,0.17]
[1719259541550,0.17,128.44,128.31,20.0]
[1719259541769,66.48343571,128.49,128.32,0.34]
[1719259541972,7.7878,128.41,128.32,19.822]
[1719259542185,7.7871,128.42,128.33,20.0]
[1719259542482,7.7871,128.42,128.34,0.34]
[1719259542669,7.7888,128.39,128.29,25.9896]
[1719259542845,7.7888,128.39,128.3,20.0]
[1719259543054,7.7882,128.4,128.3,27.794]
[1719259543248,19.4683,128.42,128.3,20.0]
[1719259543450,7.7905,128.37,128.3,20.0]
[1719259543670,7.7912,128.35,128.25,266.8972]
[1719259543978,7.7913,128.35,128.26,20.0]
[1719259544790,19.4741,128.38,128.24,7.7978]
[1719259544978,0.34,128.37,128.25,20.0]
[1719259545658,7.7931,128.32,128.25,20.0]
[1719259545857,0.34,128.37,128.22,55.1951]
[1719259545858,19.4772,128.36,128.22,55.1951]
[1719259546074,7.7943,128.3,128.22,7.7929]
[1719259546259,7.7948,128.29,128.22,7.7929]
[1719259547174,19.4852,128.31,128.22,7.7929]
[1719259547375,0.34,128.3,128.22,7.7929]
[1719259547555,7.7963,128.27,128.22,7.7929]
[1719259547756,7.7977,128.25,128.22,7.7929]
[1719259548264,7.7968,128.26,128.18,6.5032]
[1719259548459,7.7962,128.27,128.18,6.5032]
[1719259548678,7.7952,128.29,128.2,7.8002]
[1719259548861,7.7952,128.29,128.19,23.1033]
[1719259549055,7.7955,128.28,128.19,23.1033]
[1719259549285,7.7967,128.26,128.19,15.3025]
[1719259549583,19.4869,128.3,128.19,15.3025]
[1719259549762,7.7974,128.25,128.19,15.3025]
[1719259550188,7.7979,128.24,128.19,15.3025]
[1719259550477,7.7979,128.24,128.17,15.3025]
[1719259550478,7.7974,128.25,128.17,15.3025]
[1719259550658,7.7968,128.26,128.17,15.3025]
[1719259550854,19.4892,128.28,128.17,15.3025]
[1719259550855,7.7973,128.25,128.17,15.3025]
[1719259551290,0.34,128.29,128.17,23.1045]
[1719259551501,25.496,128.31,128.17,23.1045]
[1719259551502,0.34,128.3,128.17,23.1045]
[1719259551655,0.34,128.3,128.16,20.21477671]
[1719259551656,19.491,128.27,128.16,20.21477671]
[1719259551988,7.798,128.24,128.16,20.21477671]
[1719259552485,7.7949,128.29,128.2,7.8002]
[1719259552684,7.7958,128.28,128.18,27.3043]
[1719259552871,7.7961,128.27,128.19,20.0]
[1719259553074,6.011,128.31,128.2,0.17]
[1719259553390,7.7946,128.3,128.2,19.6702]
[1719259553563,7.7949,128.29,128.21,20.17]
[1719259553763,7.7949,128.29,128.22,0.17]
[1719259554266,19.482,128.33,128.18,7.8013]
[1719259554469,7.796,128.27,128.19,20.34]
[1719259554675,19.482,128.33,128.19,28.1406]
[1719259554885,7.7941,128.31,128.21,7.7996]
[1719259555084,0.17,128.32,128.19,20.34]
[1719259555085,19.4831,128.32,128.19,20.34]
[1719259555382,7.7955,128.28,128.19,0.34]
[1719259555586,7.7955,128.28,128.19,20.34]
[1719259555769,7.7955,128.28,128.19,28.1405]
[1719259556090,65.0142,128.35,128.19,20.34]
[1719259556265,7.7949,128.29,128.2,7.8001]
[1719259559074,7.7936,128.31,128.22,8.1388]
[1719259559575,7.7928,128.33,128.22,15.6051]
[1719259559864,19.4816,128.33,128.22,15.2651]
[1719259560069,19.4816,128.33,128.23,0.34]
[1719259560267,7.7946,128.3,128.23,0.17]
[1719259561071,69.23996677,128.39,128.23,26.4032]
[1719259561271,7.7918,128.34,128.25,7.7971]
[1719259561470,88.71296677,128.39,128.23,26.4032]
[1719259561471,61.1251,128.39,128.23,6.4032]
[1719259561672,38.9555,128.36,128.22,15.2651]
[1719259561892,19.4848,128.31,128.22,15.2651]
[1719259562084,7.7955,128.28,128.22,15.2651]
[1719259562602,7.7944,128.3,128.22,15.2651]
[1719259562896,7.7947,128.3,128.22,15.2651]
[1719259563193,37.5890139,128.38,128.25,7.797]
[1719259563378,37.5890139,128.38,128.26,0.17]
[1719259563379,19.4744,128.38,128.26,0.17]
[1719259563577,38.9551,128.36,128.23,0.17]
[1719259563797,38.9551,128.36,128.22,15.2651]
[1719259564170,19.4828,128.32,128.22,15.2651]
[1719259564378,7.795,128.29,128.22,15.2651]
[1719259564592,62.3651,128.36,128.22,15.2651]
[1719259564780,19.4863,128.3,128.19,6.3635]
[1719259564981,7.7952,128.29,128.2,27.3001]
[1719259565183,7.7956,128.28,128.2,19.5003]
[1719259565390,7.7956,128.28,128.19,6.3635]
[1719259565605,0.17,128.35,128.19,6.3635]
[1719259565773,7.7974,128.25,128.19,6.3635]
[1719259565969,7.7968,128.26,128.19,6.3635]
[1719259566188,19.4837,128.32,128.19,6.3635]
[1719259566490,7.796,128.28,128.19,6.3635]
[1719259566692,7.7958,128.28,128.19,14.1643]
[1719259566892,7.7958,128.28,128.19,6.3635]
[1719259567192,7.7962,128.27,128.19,6.3635]
[1719259567506,7.797,128.26,128.19,6.3635]
[1719259567705,19.8246,128.31,128.19,6.3635]
[1719259567706,19.4875,128.29,128.19,6.3635]
[1719259568290,7.7967,128.26,128.19,6.3635]
[1719259568922,7.7973,128.25,128.19,6.3635]
[1719259569217,7.7974,128.25,128.19,6.3635]
[1719259569521,19.4875,128.29,128.19,6.3635]
[1719259569687,19.4904,128.27,128.17,15.0632]
[1719259569889,19.4937,128.25,128.16,0.72557671]
[1719259570092,0.17,128.26,128.15,6.4884]
[1719259570325,7.7995,128.22,128.15,25.9821]
[1719259570694,7.7985,128.23,128.15,25.9821]
[1719259570892,0.17,128.28,128.15,45.4899]
[1719259571104,0.34,128.28,128.16,20.17]
[1719259571415,7.7982,128.24,128.17,0.17]
[1719259571718,7.7982,128.24,128.17,0.34]
[1719259572615,0.34,128.28,128.18,0.17]
[1719259572797,6.6621,128.29,128.16,20.34]
[1719259573113,19.4891,128.28,128.16,0.34]
[1719259573301,26.1504,128.29,128.16,20.34]
[1719259573631,7.7968,128.26,128.17,7.802]
[1719259573924,7.7973,128.25,128.18,0.34]
[1719259574090,26.1504,128.29,128.18,0.17]
[1719259574291,0.34,128.28,128.18,0.34]
[1719259574515,0.34,128.28,128.18,0.17]
[1719259574706,19.4883,128.29,128.16,20.0]
[1719259574998,53.36475697,128.33,128.18,19.503]
[1719259574999,19.4834,128.32,128.18,19.503]
[1719259575199,19.4834,128.32,128.17,0.34]
[1719259575200,19.4834,128.32,128.2,19.5002]
[1719259575413,19.4834,128.32,128.21,0.17]
[1719259575597,19.4834,128.32,128.21,0.34]
[1719259575912,7.7955,128.28,128.21,0.34]
[1719259576112,6.2824,128.33,128.21,0.34]
[1719259576410,25.7641,128.33,128.2,16.6374]
[1719259576596,7.7943,128.3,128.21,8.1392]
[1719259576794,25.7641,128.33,128.21,0.34]
[1719259577121,7.796,128.28,128.21,0.17]
[1719259577508,19.4845,128.31,128.2,16.6374]
[1719259577724,7.7982,128.24,128.13,19.5114]
[1719259577910,7.7982,128.24,128.15,48.78346596]
[1719259578120,19.4904,128.27,128.15,48.78346596]
[1719259578121,7.7973,128.25,128.15,56.58656596]
[1719259578413,7.7998,128.21,128.15,42.6195]
[1719259578618,0.17,128.2,128.11,266.32905989]
[1719259578922,0.17,128.24,128.11,266.32905989]
[1719259578923,7.7986,128.23,128.11,266.32905989]
[1719259579217,7.7986,128.23,128.13,19.5105]
[1719259579433,7.8002,128.21,128.11,266.32905989]
[1719259579605,0.17,128.24,128.11,266.32905989]
[1719259579606,7.7991,128.22,128.11,266.32905989]
[1719259580104,7.7991,128.22,128.12,27.2972]
[1719259580421,7.801,128.19,128.12,19.4922]
[1719259580618,7.8003,128.2,128.12,19.4922]
[1719259580819,0.17,128.23,128.11,266.32905989]
[1719259581129,7.7973,128.25,128.12,19.5128]
[1719259581302,7.7961,128.27,128.17,7.8021]
[1719259581723,19.4885,128.29,128.16,0.17]
[1719259581908,19.4885,128.29,128.14,30.74]
[1719259581909,19.4885,128.29,128.15,0.34]
[1719259582098,7.7954,128.29,128.18,7.8015]
[1719259582302,19.4827,128.32,128.19,0.17]
[1719259582526,19.4868,128.3,128.17,0.17]
[1719259582706,19.4868,128.3,128.16,20.34]
[1719259582707,7.7971,128.26,128.16,20.34]
[1719259582902,7.7979,128.24,128.16,20.17]
[1719259583122,19.4897,128.28,128.16,0.17]
[1719259583331,7.7973,128.25,128.16,0.17]
[1719259583626,7.9672,128.26,128.16,7.9727]
[1719259584037,19.4844,128.31,128.16,0.17]
[1719259584208,7.7925,128.33,128.23,7.7981]
[1719259584404,7.7912,128.35,128.25,7.7969]
[1719259584618,7.7907,128.36,128.26,8.1366]
[1719259584862,35.3303,128.4,128.28,21.3904]
[1719259584863,8.10853362,128.4,128.28,21.3904]
[1719259585016,19.4661,128.43,128.29,20.34]
[1719259585624,19.4661,128.43,128.28,29.1853]
[1719259585625,7.7904,128.37,128.28,21.5604]
[1719259585827,19.4661,128.43,128.29,0.34]
[1719259586024,19.4698,128.41,128.29,0.34]
[1719259586327,19.4731,128.39,128.28,21.3904]
[1719259586534,14.31510652,128.45,128.28,21.3904]
[1719259586710,7.7881,128.41,128.31,7.7936]
[1719259586910,7.7876,128.41,128.29,19.8259]
[1719259587111,7.7876,128.41,128.31,7.7935]
[1719259587323,7.7846,128.46,128.36,7.7905]
[1719259587511,8.10825633,128.47,128.34,19.4792]
[1719259587706,19.4574,128.49,128.35,0.34]
[1719259587906,7.7852,128.45,128.35,0.34]
[1719259588227,7.7858,128.44,128.34,7.7916]
[1719259588527,26.0776,128.5,128.35,0.34]
[1719259588708,7.7839,128.48,128.36,22.3804]
[1719259588909,7.7839,128.48,128.38,7.7891]
[1719259589114,7.7833,128.48,128.39,0.34]
[1719259589327,7.7833,128.48,128.4,0.17]
[1719259589537,10.0,128.52,128.37,19.6438]
[1719259589725,7.7851,128.45,128.36,22.3804]
[1719259589929,7.7851,128.45,128.37,0.17]
[1719259590132,19.4576,128.49,128.37,0.17]
[1719259590316,19.4576,128.49,128.36,22.3804]
[1719259590514,19.4614,128.46,128.36,22.3804]
[1719259590828,19.466,128.43,128.31,22.6914]
[1719259591034,0.34,128.42,128.31,22.6914]
[1719259591334,8.1274,128.42,128.32,7.7929]
[1719259591513,7.9574,128.42,128.32,7.7929]
[1719259591709,0.17,128.42,128.31,22.6914]
[1719259591914,7.7899,128.38,128.31,22.6914]
[1719259592229,7.7894,128.38,128.31,22.6914]
[1719259592415,0.17,128.42,128.31,22.6914]
[1719259592621,7.9571,128.42,128.31,22.6914]
[1719259592823,7.7871,128.42,128.32,27.2744]
[1719259593421,7.7857,128.44,128.34,19.4786]
[1719259593741,7.2198476,128.53,128.38,6.0568]
[1719259593926,7.2198476,128.53,128.39,0.17]
[1719259593927,19.4562,128.5,128.39,0.17]
[1719259594108,7.7822,128.5,128.4,23.9559]
[1719259594306,20.3283476,128.53,128.41,20.0]
[1719259594612,0.8768476,128.53,128.4,16.1683]
[1719259594820,7.785,128.46,128.4,16.1683]
[1719259595022,19.4527,128.52,128.4,16.1683]
[1719259595233,7.7838,128.48,128.4,16.1683]
[1719259595741,7.7828,128.49,128.4,16.1683]
[1719259596241,19.4527,128.52,128.4,16.1683]
[1719259596442,19.4558,128.5,128.4,16.1683]
[1719259596734,7.7856,128.45,128.4,16.1683]
[1719259596932,19.459,128.48,128.38,6.0568]
[1719259597125,0.34,128.47,128.38,6.0568]
[1719259597321,0.17,128.47,128.38,6.0568]
[1719259597632,0.34,128.47,128.38,6.0568]
[1719259598009,7.7868,128.43,128.38,6.0568]
[1719259598521,19.4625,128.46,128.35,16.2416]
[1719259598726,0.34,128.45,128.35,16.2416]
[1719259598924,0.17,128.45,128.35,16.2416]
[1719259599225,6.5223,128.49,128.35,35.7187]
[1719259599433,6.5223,128.49,128.35,16.2416]
[1719259599434,7.7858,128.44,128.35,16.2416]
[1719259599617,7.7866,128.43,128.35,16.2416]
[1719259599824,7.7857,128.44,128.35,16.2416]
[1719259600017,7.7858,128.44,128.35,16.2416]
[1719259600224,19.4612,128.47,128.35,16.2416]
[1719259600438,7.7862,128.44,128.35,16.2416]
[1719259600809,7.7851,128.45,128.35,16.2416]
[1719259601026,7.7861,128.44,128.35,16.2416]
[1719259602007,7.7852,128.45,128.35,24.0323]
[1719259602211,19.4545,128.51,128.36,0.34]
[1719259602428,19.4545,128.51,128.36,20.34]
[1719259602630,46.0603476,128.53,128.36,20.34]
[1719259602933,0.8768476,128.53,128.37,6.2218]
[1719259603138,7.7815,128.51,128.41,7.7874]
[1719259603337,0.8768476,128.53,128.44,6.2218]
[1719259603721,7.781,128.52,128.44,6.2218]
[1719259604020,8.6570476,128.53,128.44,6.2218]
[1719259604239,0.8768476,128.53,128.44,6.2218]
[1719259604535,0.8768476,128.53,128.46,7.7842]
[1719259604720,0.8768476,128.53,128.47,7.9537]
[1719259604923,8.0997281,128.62,128.48,22.9803]
[1719259605227,6.5193,128.71,128.53,7.7802]
[1719259605228,19.4319,128.66,128.53,7.7802]
[1719259605547,7.7747,128.63,128.52,27.402]
[1719259605721,7.7744,128.63,128.53,20.17]
[1719259605915,27.52383333,128.69,128.53,20.17]
[1719259606434,7.7742,128.63,128.53,20.17]
[1719259607325,7.7753,128.62,128.52,19.4512]
[1719259607640,7.7753,128.62,128.53,0.34]
[1719259607949,19.4307,128.67,128.53,0.34]
[1719259607950,7.7754,128.61,128.53,0.34]
[1719259608240,20.3104476,128.65,128.5,30.74]
[1719259608416,20.3104476,128.65,128.51,20.34]
[1719259608609,7.9439,128.64,128.53,7.7801]
[1719259608838,0.8768476,128.65,128.55,16.1842]
[1719259609017,0.8768476,128.65,128.57,7.7777]
[1719259609214,0.8768476,128.65,128.58,7.9471]
[1719259609429,0.8768476,128.65,128.58,7.7766]
[1719259609738,0.8768476,128.65,128.55,16.1842]
[1719259609938,7.7684,128.73,128.62,7.7746]
[1719259610235,7.7684,128.73,128.61,0.17]
[1719259610429,7.7699,128.71,128.62,0.17]
[1719259610635,7.7687,128.73,128.62,0.17]
[1719259610818,7.7702,128.7,128.59,20.0]